Cogmind - Beta 13 *** ADVENTURER MODE // 2024.04.03 @ 11:15:04 Player: Lonely Shikari Result: Destroyed by G-47 Trooper with Particle Gun Performance ------------- Evolutions (2) 1000 Regions Visited (4) 800 Robots Destroyed (33) 165 Value Destroyed (939) 939 Prototype IDs (1) 20 Alien Tech Used (0) 0 Bonus (11) 11 TOTAL SCORE: 2935 Bonus ------- High Alert Combat Kills 11 Cogmind --------- Core Integrity 0/550 Matter 300/300 Energy 100/100 System Corruption 0% Temperature Warm (168) Movement Core (250) Ox4 Location -8/Storage Parts ------- > --- POWER (2) -------- (None) > --- PROPULSION (3) --- (None) > --- UTILITY (3) ------ Medium Storage Unit > --- WEAPON (3) ------- Chainsword > --- INVENTORY (10) --- Heavy Ion Engine Heavy Ion Engine Armored Treads Heat Sink Small Storage Unit Improved Targeting Computer Heavy EM Pulse Gun Heavy Assault Rifle Heavy Assault Rifle Peak State ------------ > --- POWER ------------ Ion Engine Heavy Ion Engine > --- PROPULSION ------- Armored Treads Armored Treads Armored Treads > --- UTILITY ---------- Medium Storage Unit Reactive Plating System Shield > --- WEAPON ----------- Medium Laser Heavy Assault Rifle Advanced Assault Cannon > --- INVENTORY -------- Heavy Ion Engine Heavy Ion Engine Armored Treads Heat Sink Small Storage Unit Improved Targeting Computer Heavy EM Pulse Gun Heavy Assault Rifle Advanced Assault Cannon Chainsword [Rating: 29] Favorites ----------- Power Heavy Ion Engine Engine Heavy Ion Engine Propulsion Armored Treads Treads Armored Treads Leg Aluminum Leg Utility System Shield Storage Small Storage Unit Hackware System Shield Protection Light Armor Plating Weapon Heavy Assault Rifle Energy Gun Medium Laser Ballistic Gun Heavy Assault Rifle Ballistic Cannon Advanced Assault Cannon Slashing Weapon Chainsword Build | -11 -10 -9 -8 -8 ------- Run | Yrd Mat Mat Mat Sto Slots Evolved 4 | . . 2 2 . Power 1 | . . . 1 . Propulsion 1 | . . 1 . . Utility 1 | . . 1 . . Weapon 1 | . . . 1 . Parts Attached 18 | 1 1 8 4 4 Power 2 | . . 1 1 . Engine 2 | . . 1 1 . Core . | . . . . . Reactor . | . . . . . Propulsion 5 | . 1 3 . 1 Treads 4 | . . 3 . 1 Leg 1 | . 1 . . . Wheel . | . . . . . Hover . | . . . . . Flight . | . . . . . Utility 4 | . . 2 1 1 Device . | . . . . . Storage 1 | . . . 1 . Processor . | . . . . . Hackware 1 | . . 1 . . Protection 2 | . . 1 . 1 Artifact . | . . . . . Weapon 7 | 1 . 2 2 2 Energy Gun 1 | . . 1 . . Energy Cannon . | . . . . . Ballistic Gun 3 | 1 . 1 1 . Ballistic Cannon 2 | . . . 1 1 Launcher . | . . . . . Special Weapon . | . . . . . Impact Weapon . | . . . . . Slashing Weapon 1 | . . . . 1 Piercing Weapon . | . . . . . Special Melee Weapon . | . . . . . Unidentified Prototypes 1 | . . 1 . . Parts Lost 10 | . . 1 . 9 Power 2 | . . . . 2 Propulsion 2 | . . . . 2 Utility 2 | . . . . 2 Weapon 4 | . . 1 . 3 Highest Loss Streak 9 | . . 1 . 9 To Critical Strikes . | . . . . . Average Slot Usage (%) 94 | . 85 98 100 80 Engine 12 | . 14 11 18 12 Treads 26 | . . 32 27 19 Leg 3 | . 28 . . . Storage 10 | . 14 11 9 9 Hackware 8 | . . 10 9 8 Protection 8 | . . 9 9 7 Energy Gun 10 | . 14 11 9 5 Ballistic Gun 11 | . 14 11 15 5 Ballistic Cannon 1 | . . . 2 8 Naked Turns . | . . . . . Heaviest Build 44 | 13 13 21 37 44 Greatest Support 60 | 20 20 60 60 60 Greatest Overweight (x) 12 | . . . . 12 Average Overweight (x) . | . . . . . Largest Inventory Capacity 10 | 8 8 8 10 10 Average Capacity 8 | 8 8 8 9 10 Most Carried 10 | 5 6 8 10 10 Average Carried 7 | 4 5 7 7 9 Final Capacity 10 | 8 8 8 10 10 Final Carried 10 | 4 6 8 10 9 Class Distribution -------------------- 70% | Hacker-Mutant 16% | Hacker-Tank 13% | Mutant Dominant Class ---------------- Mutant | -10/Materials Hacker-Mutant | -9/Materials Hacker-Tank | -8/Materials Hacker-Tank | -8/Storage Resources | -11 -10 -9 -8 -8 ----------- Run | Yrd Mat Mat Mat Sto Matter Collected 736 | 200 35 217 57 227 Remotely . | . . . . . Salvage Created 1077 | . 172 656 60 189 Parts 54 | . 10 35 3 6 Haulers Intercepted . | . . . . . Recyclers Shooed . | . . . . . Parts Field Recycled . | . . . . . Retrieved Matter . | . . . . . Parts Self-Destructed . | . . . . . Prevented . | . . . . . Kills | -11 -10 -9 -8 -8 ------- Run | Yrd Mat Mat Mat Sto Combat Hostiles Destroyed 30 | . 3 21 1 5 Melee 3 | . . . . 3 Guns 24 | . 3 18 1 2 AOE 3 | . . 3 . . Classes Destroyed 6 | . 2 3 . 1 Watcher 3 | . 1 2 . . Swarmer 12 | . . 12 . . Grunt 9 | . 3 3 . 3 Brawler 1 | . . . . 1 Duelist 2 | . . 1 . 1 Sentry 6 | . . 5 1 . Best Kill Streak 6 | . 3 6 1 2 Combat Bots Only 6 | . 3 6 1 2 Max Kills in Single Turn 3 | . 1 3 1 1 Gunslinging . | . . . . . Exploded 3 | . . 3 . . Melee 1 | . . . . 1 Uniques/NPCs Destroyed . | . . . . . Combat | -11 -10 -9 -8 -8 -------- Run | Yrd Mat Mat Mat Sto Hostile Shots Fired 210 | . 13 81 4 112 Missed 37 | . 1 31 . 5 Damage Taken 2364 | . 159 507 48 1650 Core 660 | . 27 74 . 559 Absorbed by Shields . | . . . . . Ignored by Resistances 593 | . 46 146 13 388 Core Remaining (%) 90 | 100 89 81 . . Volleys Fired 86 | . 15 51 4 16 Largest 3 | . 2 2 3 3 Hottest 121 | . 60 73 121 121 Shots Fired 180 | . 30 101 11 38 Gun 169 | . 30 101 10 28 Cannon 11 | . . . 1 10 Launcher . | . . . . . Special . | . . . . . Kinetic 96 | . 15 51 8 22 Thermal 58 | . . 39 3 16 Explosive . | . . . . . Electromagnetic 26 | . 15 11 . . Robot Hit Streak 25 | . 8 25 7 8 Robot Miss Streak 2 | . 2 2 2 1 Penetration Max . | . . . . . Secondary Targets 2 | . . 1 . 1 Max Gunslinging Chain 1 | . . 1 . 1 Shots Hit Robots 152 | . 24 81 8 39 Core Hits 56 | . 9 34 2 11 Critical Kills . | . . . . . Critical Parts Destroyed . | . . . . . Critical Strikes 7 | . . 5 . 2 Burn 6 | . . 5 . 1 Sever 1 | . . . . 1 Melee Attacks 9 | . . . . 9 Impact . | . . . . . Slashing 9 | . . . . 9 Piercing . | . . . . . Sneak Attacks . | . . . . . Combat Hostiles . | . . . . . Follow-up Attacks . | . . . . . Damage Inflicted 2550 | . 290 1215 122 923 Guns 1834 | . 290 1109 97 338 Cannons 280 | . . . 25 255 Explosions 106 | . . 106 . . Melee 315 | . . . . 315 Ramming 15 | . . . . 15 Kinetic 1249 | . 96 650 96 407 Thermal 685 | . . 473 26 186 Explosive . | . . . . . Electromagnetic 286 | . 194 92 . . Impact . | . . . . . Slashing 315 | . . . . 315 Piercing . | . . . . . Highest Corruption . | . . . . . Average Corruption . | . . . . . Corruption Purged . | . . . . . Corruption Blocked . | . . . . . Overload Shots . | . . . . . Overflow Damage 1 | . . . . 1 Projectiles 1 | . . . . 1 Explosions . | . . . . . Melee . | . . . . . Knockbacks 3 | . . . . 3 Impact . | . . . . . Kinetic 3 | . . . . 3 Secondary . | . . . . . Self-Inflicted Damage 19 | . . 19 . . Shots 1 | . . 1 . . Rammed 2 | . . . . 2 Targets Rammed 3 | . . . . 3 Kicked . | . . . . . Crushed 1 | . . . . 1 Highest Temperature 901 | . 150 213 99 901 Average Temperature 201 | . 64 50 47 559 Received Heat Transfer 1308 | . 96 150 18 1044 Effects 41 | . . . . 41 Shutdowns 10 | . . . . 10 Energy Bleed 6 | . . . . 6 Interference 4 | . . . . 4 Matter Decay 3 | . . . . 3 Short Circuit 5 | . . . . 5 Damage (minor) 2 | . . . . 2 Damage (major) 8 | . . . . 8 Damage (core) 3 | . . . . 3 Siege Activations . | . . . . . Robots Corrupted . | . . . . . Combat Hostiles . | . . . . . Parts Fried . | . . . . . Impact Corruptions . | . . . . . Robots Melted . | . . . . . Combat Hostiles . | . . . . . Parts Melted 5 | . . 5 . . Heat Transferred 2111 | . . 1543 74 494 Parts Sabotaged . | . . . . . Parts Stolen . | . . . . . Parts Stripped . | . . . . . Power Chain Reactions 1 | . . 1 . . Alert | -11 -10 -9 -8 -8 ------- Run | Yrd Mat Mat Mat Sto Peak Influence 444 | . 121 444 165 80 Initial 120 | . . 43 120 59 Average 177 | . 72 225 139 51 Maximum Alert Level 2 | . . 2 . . Low Security (%) 59 | 100 100 38 100 100 Level 1 36 | . . 54 . . Level 2 4 | . . 6 . . Level 3 . | . . . . . Level 4 . | . . . . . Level 5 . | . . . . . High Security . | . . . . . Max Security . | . . . . . Squads Dispatched 5 | . 1 1 . 3 Investigation 1 | . 1 . . . Extermination . | . . . . . Reinforcement 1 | . . 1 . . Assault 2 | . . . . 2 Garrison 1 | . . . . 1 Intercept . | . . . . . Searches Triggered . | . . . . . Construction Impeded . | . . . . . Haulers Reinforced . | . . . . . Active Scanning Responses . | . . . . . Cargo Convoy Interrupts . | . . . . . Stealth | -11 -10 -9 -8 -8 --------- Run | Yrd Mat Mat Mat Sto Distress Signals 2 | . . 1 1 . Communications Jammed . | . . . . . Distress Signals . | . . . . . Times Spotted 41 | . 6 25 3 7 Peak Tracking Total 7 | . 5 7 2 5 Tactical Retreats 2 | . 1 1 . . Traps | -11 -10 -9 -8 -8 ------- Run | Yrd Mat Mat Mat Sto Traps Triggered . | . . . . . Indirectly . | . . . . . Trap Hack Attempts . | . . . . . Triggered . | . . . . . Disarmed . | . . . . . Reprogrammed . | . . . . . Reused . | . . . . . Traps Extracted . | . . . . . Installed . | . . . . . Triggered . | . . . . . Machines | -11 -10 -9 -8 -8 ---------- Run | Yrd Mat Mat Mat Sto Machines Disabled 1 | . . 1 . . Max in Single Turn 1 | . . 1 . . Garrison Access 1 | . . . 1 . Machines Repaired . | . . . . . Machines Dismantled . | . . . . . Machines Sabotaged . | . . . . . Overloaded Fab Kills . | . . . . . Hacking | -11 -10 -9 -8 -8 --------- Run | Yrd Mat Mat Mat Sto Machines Accessed 4 | . 1 2 1 . Terminals 2 | . 1 1 . . Fabricators . | . . . . . Repair Stations . | . . . . . Recycling Units . | . . . . . Scanalyzers 1 | . . 1 . . Garrison Access 1 | . . . 1 . Total Hacks 18 | . 5 11 2 . Successful 11 | . 2 8 1 . Failed 7 | . 3 3 1 . Catastrophic 1 | . . . 1 . Database Lockouts . | . . . . . Manual 9 | . 5 4 . . Terminals 12 | . 5 7 . . Fabricators . | . . . . . Repair Stations . | . . . . . Recycling Units . | . . . . . Scanalyzers 4 | . . 4 . . Garrison Access 2 | . . . 2 . Terminal Hacks 3 | . 2 1 . . Emergency Access Points 1 | . 1 . . . Zone Layout 2 | . 1 1 . . Fabricator Hacks . | . . . . . Repair Station Hacks . | . . . . . Recycling Unit Hacks . | . . . . . Scanalyzer 4 | . . 4 . . Insert Component 2 | . . 2 . . Analyze 2 | . . 2 . . Garrison Access Hacks 1 | . . . 1 . Seal Access 1 | . . . 1 . Unauthorized Hacks 3 | . . 3 . . Terminals 3 | . . 3 . . Assimilate 1 | . . 1 . . Botnet 1 | . . 1 . . Operators 1 | . . 1 . . Fabricators . | . . . . . Repair Stations . | . . . . . Recycling Units . | . . . . . Scanalyzers . | . . . . . Garrison Access . | . . . . . Data Cores Recovered . | . . . . . Used . | . . . . . Hacking Detections 2 | . 1 1 . . Full Trace Events 1 | . 1 . . . Feedback Events . | . . . . . Feedback Blocked . | . . . . . Robot Schematics Acquired . | . . . . . Robots Built . | . . . . . Authchips . | . . . . . Time . | . . . . . Total Robot Build Rating . | . . . . . Part Schematics Acquired 2 | . . 2 . . Parts Built . | . . . . . Authchips . | . . . . . Time . | . . . . . Total Part Build Rating . | . . . . . Parts Repaired . | . . . . . Time . | . . . . . Parts Recycled . | . . . . . Recycled Matter . | . . . . . Retrieved Matter . | . . . . . Retrieved Components . | . . . . . Parts Scanalyzed 2 | . . 2 . . Part Schematics Acquired 2 | . . 2 . . Parts Damaged . | . . . . . Bothacking | -11 -10 -9 -8 -8 ------------ Run | Yrd Mat Mat Mat Sto Used RIF Installer . | . . . . . Robots Hacked . | . . . . . Non-combat . | . . . . . Combat . | . . . . . Robot Hacks Applied . | . . . . . Relay Couplers Released . | . . . . . Fabnet Peak Effective % . | . . . . . Robots Rewired . | . . . . . Allies Hacked . | . . . . . Hacks Repelled . | . . . . . Allies | -11 -10 -9 -8 -8 -------- Run | Yrd Mat Mat Mat Sto Total Allies 2 | . . . . 2 Largest Group 2 | . . . . 2 Highest-Rated Group 62 | . . . . 62 Highest-Rated Ally 31 | . . . . 31 Total Orders . | . . . . . Ally Attacks 15 | . . . . 15 Total Damage 169 | . . . . 169 Kills . | . . . . . Allies Corrupted . | . . . . . Allies Melted . | . . . . . Intel | -11 -10 -9 -8 -8 ------- Run | Yrd Mat Mat Mat Sto Robot Analysis Total . | . . . . . Derelict Logs Recovered . | . . . . . Drone Launches . | . . . . . Drone Recoveries . | . . . . . Exploration | -11 -10 -9 -8 -8 ------------- Run | Yrd Mat Mat Mat Sto Turns Passed 1291 | 3 173 847 127 141 Spaces Moved 547 | 1 103 357 60 26 Core 3 | . . . . 3 Treads 435 | . . 352 60 23 Legs 109 | 1 103 5 . . Wheels . | . . . . . Hover . | . . . . . Flight . | . . . . . Fastest Speed 120 | 120 120 120 170 170 Average Speed 161 | 120 120 169 170 206 Slowest Speed 650 | 120 120 170 170 650 Overloaded Moves . | . . . . . Propulsion Burnouts . | . . . . . Robots Hopped . | . . . . . Cave-ins Triggered . | . . . . . Exploration Rate (%) 18 | 2 27 50 7 5 Regions Visited 4 Branch Regions 1 Pre-discovered Areas . | . . . . . Known Exits Taken . | . . . . . Unknown Exits Taken 4 | 1 1 1 1 . Scrap Searched . | . . . . . Spaces Dug . | . . . . . Terrain Destroyed 4 | . . 4 . . Melee . | . . . . . Projectile . | . . . . . AOE 4 | . . 4 . . Terrain Rammed . | . . . . . Walls Destroyed . | . . . . . Machines Disabled . | . . . . . Actions | -11 -10 -9 -8 -8 --------- Run | Yrd Mat Mat Mat Sto Total 769 | 4 125 503 76 61 Wait 81 | . 6 69 6 . Move 543 | . 102 356 59 26 Hop . | . . . . . Pick Up 11 | . 1 8 2 . Fast Attach 7 | . . 5 1 1 Attach 7 | 1 . 2 2 2 Detach 6 | 1 . 3 1 1 Swap 4 | . 1 1 1 1 Drop 12 | 2 . 8 . 2 Fire 86 | . 15 51 4 16 Melee 9 | . . . . 9 Ram 1 | . . . . 1 Kick . | . . . . . Crush 2 | . . . . 2 Escape Stasis . | . . . . . Rewire . | . . . . . Trap . | . . . . . Miscellaneous . | . . . . . Route ------- -11/Scrapyard -10/Materials -9/Materials (discovered 2 exits: *Mat x2) -8/Materials -8/Storage History --------- Turn | Location | Event 4 | -11/Scrapyard | Discovered new exit (range 0) 4 | -11/Scrapyard | Entered Materials 155 | -10/Materials | Discovered new exit (range 10) 177 | -10/Materials | Entered another Materials area 177 | -9/Materials | Evolved 2 slots: Propulsion x1, Utility x1 488 | -9/Materials | Build established: Hacker-Mutant 518 | -9/Materials | Discovered new exit (range 9) 993 | -9/Materials | Discovered new exit (range 13) 1024 | -9/Materials | Entered another Materials area 1024 | -8/Materials | Evolved 2 slots: Power x1, Weapon x1 1098 | -8/Materials | Discovered new exit (range 16) 1151 | -8/Materials | Entered Storage 1162 | -8/Storage | Met a pair of Derelict thieves 1194 | -8/Storage | Garrison activated, responded to threat 1239 | -8/Storage | Core integrity fell below 50% 1268 | -8/Storage | Core integrity fell below 20% 1292 | -8/Storage | Destroyed by G-47 Trooper with Particle Gun Last Messages --------------- 01259_ Overheating: Hvy. Ion Engine damaged (-8). 01260_ Acquired 2 matter. 01263_ Hvy. Ion Engine destroyed. 01264_ Overheating: Matter decay (-51). 01264_ Acquired 2 matter. 01265_ Reactive Plating destroyed. 01267_ Broken Arm. Treads destroyed. 01269_ Critical hit (Burn: +37). 01271_ G-50 Soldier Carbon-fiber Leg severed. 01273_ Critical hit (Burn: +37). 01274_ G-50 Soldier destroyed. 01275_ Overheating: Energy bleed (-15). 01279_ Broken Arm. Treads destroyed. 01285_ Adv. Assault Cannon destroyed. 01285_ K-01 Serf collects debris. 01286_ G-47 Trooper destroyed. 01288_ K-01 Serf collects debris. 01289_ System Shield destroyed. 01291_ Acquired 24 matter. Map ----- +----------------------------------------------------+ | ?????????????????????????????????????????????????? | | ?????????????????????????????????????????????????? | | ?????????????????????????????????????????????????? | | ?????????????????????????????????????????????????? | | ?????????????????????????????????????????????????? | | ?????????????????????????????????????????????????? | | ?????????????????????????????????????????????????? | | ?????????????????????????????????????????????????? | | ?????????????????????????????????????????????????? | | ?????????????????????????????????????????????????? | | ?????????????????????????????????????????????????? | | ?????????????????????????????????????????????????? | | ?????????????????????????????????????????????????? | | ?????????????????????????????????????????????????? | | ????????????????????????????########?????????????? | | ????????????????????????????#! ! !#?????????????? | | ????????????????????????????# ! !!#?????????????? | | ????????????????????????????#! ! #?????????????? | | ????????????????????????????# #?????????????? | | ????????????????????????????###" "##?????????????? | | ?????????????????????????????#T #?????????????? | | ????????????????# ???????????## #?????????????? | | ???????????###### ###########+######???????????? | | ??????????? % kk!% i u #???????????? | | ????????????????# %![*[ = #???????????? | | ????????????????# g@=[=*[= #???????????? | | ????????????????##############+#######???????????? | | ????????????????????????????? ?????????????????? | | ?????????????????????????????" "?????????????????? | | ?????????????????????????????]]]?????????????????? | | ?????????????????????????????]]]?????????????????? | | ?????????????????????????????###?????????????????? | | ?????????????????????????????????????????????????? | | ?????????????????????????????????????????????????? | | | | | | | | | | | | | | | | | | | | | | | | | | | | | | | | | +----------------------------------------------------+ Best States ------------- Heat Dissipation 31 Energy Generation 19 Energy Capacity 430 Matter Stores 300 Matter Capacity 300 Sight Range 16 Terrain Scan Density 10 Armor Coverage 150 Resistance: KI 40 Resistance: TH 20 Resistance: EX 20 Resistance: EM 20 Resistance: I 20 Resistance: S 20 Resistance: P 20 Evasion (%) 55 Recoil Reduction 3 Offensive Hacking 10 Defensive Hacking 10 Item Schematics ----------------- Hvy. Ion Engine | -9/Materials | Scanalyzed Arm. Treads | -9/Materials | Scanalyzed Robot Schematics ------------------ None Fabricated ------------ Nothing Alien Tech Used ----------------- None Achievements -------------- None Challenges ------------ None Game ------ Seed PhaseBurstJammer Manual? 0 Play Time 00:18:18 Cumulative 125.1 hours Start 2024.04.03 @ 10:59:08 End 2024.04.03 @ 11:15:04 Sessions 1 Manual Loads 0 Difficulty Adventurer Special Mode None Game No. 45 Rogue 0 Adventurer 45 Explorer 0 Win Type - Total 0 Types 0/0/0/0/0/0/0/0/0 Lore% 46 Gallery% 54 Achievement% 42 Wizard Run 0 Options --------- Layout 1 ASCII 0 Keyboard 1 Movement Numpad Keybinds 0 Fullscreen 1 Font 24/X11 Map View 50x35 Zoom Use 0% Tactical HUD 1 Map Filters NONE Filters NONE Steam 1 RUN: 502289c2-941a-4872-98e7-5fb7f601f7d2